Cogmind - Beta 13 @@@ ROGUE MODE // 2024.08.02 @ 13:21:42 Player: yam Result: Self-destructed Performance ------------- Evolutions (1) 500 Regions Visited (2) 400 Robots Destroyed (7) 35 Value Destroyed (123) 123 Prototype IDs (0) 0 Alien Tech Used (0) 0 Bonus (0) 0 TOTAL SCORE: 1058 Bonus ------- None Cogmind --------- Core Integrity 190/400 Matter 259/300 Energy 100/100 System Corruption 0% Temperature Cool (27) Movement Core (150) Ox2 Location -9/Materials Parts ------- > --- POWER (1) -------- (None) > --- PROPULSION (2) --- (None) > --- UTILITY (4) ------ Small Storage Unit Signal Interpreter > --- WEAPON (2) ------- Heavy Hammer > --- INVENTORY (8) ---- High-powered Tractor Beam EM Pulse Gun Light Assault Rifle Improved Light Cannon Peak State ------------ > --- POWER ------------ Light Ion Engine > --- PROPULSION ------- Wheel Wheel > --- UTILITY ---------- Small Storage Unit Sensor Array Signal Interpreter > --- WEAPON ----------- Improved Light Cannon Heavy Hammer > --- INVENTORY -------- High-powered Tractor Beam EM Pulse Gun Light Assault Rifle Improved Light Cannon [Rating: 10] Favorites ----------- Power Light Ion Engine Engine Light Ion Engine Propulsion Wheel Wheel Wheel Utility Signal Interpreter Device Sensor Array Storage Small Storage Unit Processor Signal Interpreter Weapon EM Pulse Gun Energy Gun EM Pulse Gun Ballistic Gun Light Assault Rifle Ballistic Cannon Improved Light Cannon Impact Weapon Heavy Hammer Build | -11 -10 -9 ------- Run | Yrd Mat Mat Slots Evolved 2 | . . 2 Power . | . . . Propulsion . | . . . Utility 2 | . . 2 Weapon . | . . . Parts Attached 15 | 6 5 4 Power 1 | 1 . . Engine 1 | 1 . . Core . | . . . Reactor . | . . . Propulsion 3 | 2 . 1 Treads . | . . . Leg . | . . . Wheel 3 | 2 . 1 Hover . | . . . Flight . | . . . Utility 6 | 1 4 1 Device 3 | . 3 . Storage 2 | 1 . 1 Processor 1 | . 1 . Hackware . | . . . Protection . | . . . Artifact . | . . . Weapon 5 | 2 1 2 Energy Gun 1 | 1 . . Energy Cannon . | . . . Ballistic Gun 1 | 1 . . Ballistic Cannon 2 | . 1 1 Launcher . | . . . Special Weapon . | . . . Impact Weapon 1 | . . 1 Slashing Weapon . | . . . Piercing Weapon . | . . . Special Melee Weapon . | . . . Unidentified Prototypes . | . . . Corrupted Parts 1 | . 1 . System Corruption 2 | . 2 . Parts Lost 6 | . 1 5 Power 1 | . . 1 Propulsion 3 | . 1 2 Utility 1 | . . 1 Weapon 1 | . . 1 Highest Loss Streak 5 | . 1 5 To Critical Strikes . | . . . Average Slot Usage (%) 88 | . 98 76 Engine 12 | . 14 10 Wheel 23 | . 27 18 Device 12 | . 12 11 Storage 2 | . 2 3 Processor 11 | . 11 11 Energy Gun 8 | . 14 . Ballistic Gun 4 | . 8 . Ballistic Cannon 8 | . 5 12 Impact Weapon 3 | . . 8 Naked Turns . | . . . Heaviest Build 16 | 11 12 16 Greatest Support 20 | 20 20 20 Greatest Overweight (x) 1 | . . 1 Average Overweight (x) . | . . . Largest Inventory Capacity 8 | 8 8 8 Average Capacity 5 | 7 5 5 Most Carried 5 | . 5 5 Average Carried 3 | . 3 4 Final Capacity 8 | 8 5 8 Final Carried 5 | . 5 4 Class Distribution -------------------- 100% | Mutant Dominant Class ---------------- Mutant | -10/Materials Mutant | -9/Materials Resources | -11 -10 -9 ----------- Run | Yrd Mat Mat Matter Collected 350 | 266 70 14 Remotely 12 | . 12 . Salvage Created 212 | 86 102 24 Parts 17 | 7 7 3 Haulers Intercepted . | . . . Recyclers Shooed . | . . . Parts Field Recycled . | . . . Retrieved Matter . | . . . Parts Self-Destructed . | . . . Prevented . | . . . Kills | -11 -10 -9 ------- Run | Yrd Mat Mat Combat Hostiles Destroyed 3 | . 2 1 Cannons 3 | . 2 1 Classes Destroyed 6 | 2 2 2 Tunneler 1 | 1 . . Recycler 1 | 1 . . Operator 1 | . . 1 Watcher 1 | . 1 . Swarmer 1 | . . 1 Grunt 2 | . 2 . Best Kill Streak 2 | 2 2 1 Combat Bots Only 2 | . 2 1 Max Kills in Single Turn 1 | 1 1 1 Gunslinging . | . . . Exploded . | . . . Melee . | . . . Uniques/NPCs Destroyed . | . . . Combat | -11 -10 -9 -------- Run | Yrd Mat Mat Hostile Shots Fired 100 | . 16 84 Missed 29 | . 6 23 Damage Taken 703 | . 136 567 Core 238 | . 28 210 Absorbed by Shields . | . . . Core Remaining (%) 94 | 100 88 . Volleys Fired 23 | 6 7 10 Largest 2 | 2 2 2 Hottest 79 | 60 79 79 Shots Fired 38 | 12 14 12 Gun 24 | 12 10 2 Cannon 14 | . 4 10 Launcher . | . . . Special . | . . . Kinetic 23 | 6 7 10 Thermal . | . . . Explosive . | . . . Electromagnetic 15 | 6 7 2 Robot Hit Streak 5 | 5 5 3 Robot Miss Streak 4 | 2 2 4 Penetration Max . | . . . Secondary Targets . | . . . Shots Hit Robots 21 | 8 6 7 Core Hits 8 | 3 4 1 Critical Kills . | . . . Critical Parts Destroyed . | . . . Critical Strikes 2 | 1 1 . Corrupt 2 | 1 1 . Melee Attacks 1 | . . 1 Impact 1 | . . 1 Slashing . | . . . Piercing . | . . . Sneak Attacks 1 | . . 1 Combat Hostiles . | . . . Follow-up Attacks . | . . . Damage Inflicted 543 | 89 215 239 Guns 135 | 89 46 . Cannons 181 | . 60 121 Explosions 109 | . 109 . Melee 118 | . . 118 Ramming . | . . . Kinetic 206 | 25 60 121 Thermal 109 | . 109 . Explosive . | . . . Electromagnetic 110 | 64 46 . Impact 118 | . . 118 Slashing . | . . . Piercing . | . . . Highest Corruption 5 | . 5 . Average Corruption 4 | . 4 . Corruption Purged . | . . . Corruption Blocked . | . . . Effects 3 | . 3 . Message Errors 2 | . 2 . Matter Fused 1 | . 1 . Overload Shots . | . . . Overflow Damage 88 | . . 88 Projectiles . | . . . Explosions . | . . . Melee 88 | . . 88 Knockbacks 3 | . . 3 Impact 1 | . . 1 Kinetic 2 | . . 2 Secondary . | . . . Self-Inflicted Damage . | . . . Shots . | . . . Rammed . | . . . Targets Rammed . | . . . Kicked . | . . . Crushed . | . . . Highest Temperature 99 | 40 99 9 Average Temperature 22 | 18 33 4 Received Heat Transfer 210 | . 96 114 Siege Activations . | . . . Robots Corrupted . | . . . Combat Hostiles . | . . . Parts Fried 1 | . . 1 Impact Corruptions 4 | . . 4 Robots Melted . | . . . Combat Hostiles . | . . . Parts Melted . | . . . Heat Transferred 100 | . 100 . Parts Sabotaged . | . . . Parts Stolen . | . . . Parts Stripped . | . . . Power Chain Reactions 1 | . 1 . Alert | -11 -10 -9 ------- Run | Yrd Mat Mat Peak Influence 109 | 10 109 107 Initial 45 | . 6 45 Average 52 | 4 46 80 Maximum Alert Level . | . . . Low Security (%) 100 | 100 100 100 Level 1 . | . . . Level 2 . | . . . Level 3 . | . . . Level 4 . | . . . Level 5 . | . . . High Security . | . . . Max Security . | . . . Squads Dispatched 4 | . . 4 Investigation 2 | . . 2 Extermination . | . . . Reinforcement 2 | . . 2 Assault . | . . . Garrison . | . . . Intercept . | . . . Searches Triggered . | . . . Construction Impeded . | . . . Haulers Reinforced . | . . . Active Scanning Responses . | . . . Cargo Convoy Interrupts . | . . . Stealth | -11 -10 -9 --------- Run | Yrd Mat Mat Distress Signals 2 | . . 2 Communications Jammed . | . . . Distress Signals . | . . . Times Spotted 28 | . 13 15 Peak Tracking Total 15 | . 6 15 Tactical Retreats 1 | . 1 . Traps | -11 -10 -9 ------- Run | Yrd Mat Mat Traps Triggered 3 | . 2 1 Indirectly . | . . . Trap Hack Attempts . | . . . Triggered . | . . . Disarmed . | . . . Reprogrammed . | . . . Reused . | . . . Traps Extracted . | . . . Installed . | . . . Triggered . | . . . Machines | -11 -10 -9 ---------- Run | Yrd Mat Mat Machines Disabled . | . . . Max in Single Turn . | . . . Machines Repaired . | . . . Machines Dismantled . | . . . Machines Sabotaged . | . . . Overloaded Fab Kills . | . . . Hacking | -11 -10 -9 --------- Run | Yrd Mat Mat Machines Accessed 1 | . . 1 Terminals 1 | . . 1 Fabricators . | . . . Repair Stations . | . . . Recycling Units . | . . . Scanalyzers . | . . . Garrison Access . | . . . Total Hacks 5 | . . 5 Successful 3 | . . 3 Failed 2 | . . 2 Catastrophic . | . . . Database Lockouts . | . . . Manual . | . . . Terminals 5 | . . 5 Fabricators . | . . . Repair Stations . | . . . Recycling Units . | . . . Scanalyzers . | . . . Garrison Access . | . . . Terminal Hacks 3 | . . 3 Record 2 | . . 2 Robot Analysis 1 | . . 1 Fabricator Hacks . | . . . Repair Station Hacks . | . . . Recycling Unit Hacks . | . . . Scanalyzer . | . . . Garrison Access Hacks . | . . . Unauthorized Hacks . | . . . Terminals . | . . . Fabricators . | . . . Repair Stations . | . . . Recycling Units . | . . . Scanalyzers . | . . . Garrison Access . | . . . Data Cores Recovered . | . . . Used . | . . . Hacking Detections 1 | . . 1 Full Trace Events 1 | . . 1 Feedback Events . | . . . Feedback Blocked . | . . . Robot Schematics Acquired . | . . . Robots Built . | . . . Authchips . | . . . Time . | . . . Total Robot Build Rating . | . . . Part Schematics Acquired . | . . . Parts Built . | . . . Authchips . | . . . Time . | . . . Total Part Build Rating . | . . . Parts Repaired . | . . . Time . | . . . Parts Recycled . | . . . Recycled Matter . | . . . Retrieved Matter . | . . . Retrieved Components . | . . . Parts Scanalyzed . | . . . Part Schematics Acquired . | . . . Parts Damaged . | . . . Bothacking | -11 -10 -9 ------------ Run | Yrd Mat Mat Used RIF Installer . | . . . Robots Hacked . | . . . Non-combat . | . . . Combat . | . . . Robot Hacks Applied . | . . . Relay Couplers Released . | . . . Fabnet Peak Effective % . | . . . Robots Rewired . | . . . Allies Hacked . | . . . Hacks Repelled . | . . . Allies | -11 -10 -9 -------- Run | Yrd Mat Mat Total Allies . | . . . Largest Group . | . . . Highest-Rated Group . | . . . Highest-Rated Ally . | . . . Total Orders . | . . . Ally Attacks . | . . . Total Damage . | . . . Kills . | . . . Allies Corrupted . | . . . Allies Melted . | . . . Intel | -11 -10 -9 ------- Run | Yrd Mat Mat Robot Analysis Total 1 | . . 1 Derelict Logs Recovered . | . . . Drone Launches . | . . . Drone Recoveries . | . . . Exploration | -11 -10 -9 ------------- Run | Yrd Mat Mat Turns Passed 464 | 66 232 166 Spaces Moved 435 | 52 238 145 Core 3 | 3 . . Treads . | . . . Legs . | . . . Wheels 432 | 49 238 145 Hover . | . . . Flight . | . . . Fastest Speed 50 | 50 80 80 Average Speed 80 | 78 80 81 Slowest Speed 95 | 80 80 95 Overloaded Moves . | . . . Propulsion Burnouts . | . . . Robots Hopped . | . . . Cave-ins Triggered . | . . . Exploration Rate (%) 23 | 3 46 20 Regions Visited 2 Branch Regions . Pre-discovered Areas . | . . . Known Exits Taken 1 | . 1 . Unknown Exits Taken 1 | 1 . . Scrap Searched . | . . . Spaces Dug . | . . . Terrain Destroyed 6 | . 6 . Melee . | . . . Projectile . | . . . AOE 6 | . 6 . Terrain Rammed . | . . . Walls Destroyed . | . . . Machines Disabled . | . . . Actions | -11 -10 -9 --------- Run | Yrd Mat Mat Total 505 | 63 264 178 Wait 25 | . 9 16 Move 433 | 51 237 145 Hop . | . . . Pick Up 4 | . 3 1 Fast Attach 11 | 6 4 1 Attach 1 | . . 1 Detach 2 | . 2 . Swap 3 | . 1 2 Drop 2 | . 1 1 Fire 23 | 6 7 10 Melee 1 | . . 1 Ram . | . . . Kick . | . . . Crush . | . . . Escape Stasis . | . . . Rewire . | . . . Trap . | . . . Miscellaneous . | . . . Route ------- -11/Scrapyard -10/Materials (discovered 3 exits: *Mat x3) -9/Materials History --------- Turn | Location | Event 10 | -11/Scrapyard | Discovered new exit (range 15) 67 | -11/Scrapyard | Entered Materials 134 | -10/Materials | Discovered new exit (range 15) 165 | -10/Materials | Discovered new exit (range 5) 291 | -10/Materials | Discovered new exit (range 12) 298 | -10/Materials | Identified exit to Materials 299 | -10/Materials | Entered another Materials area 299 | -9/Materials | Evolved 2 slots: Utility x2 308 | -9/Materials | Build established: Mutant 465 | -9/Materials | Self-destructed Last Messages --------------- S-10 Pest knocked back. C-30 ARC bursts open, deploying its payload. G-47 Trooper unfolds itself. G-34 Mercenary unfolds itself. Wheel destroyed. K-01 Serf collects debris. Wheel destroyed. K-01 Serf collects debris. S-10 Pest destroyed. K-01 Serf collects debris. S-10 Pest knocked back. K-01 Serf collects debris. Lgt. Ion Engine destroyed. K-01 Serf collects debris. Sensor Array destroyed. K-01 Serf collects debris. R-06 Scavenger collects Lgt. Ion Engine. K-01 Serf collects debris. Imp. Light Cannon destroyed. Critical hit (Burn: +37). Map ----- +----------------------------------------------------+ | ?????????????????????????????????????????????????? | | ?????????????????????????????????????????????????? | | ?????????????????????????????????????????????????? | | ?????????????????????????????????????????????????? | | ?????????????????????????????????????????????????? | | ?????????????????????????????????????????????????? | | ?????????????????????????????????????????????????? | | ?????????????????????????????????????????????????? | | ?????????????????????????????????????????????????? | | ?????????????????????????????????????????????????? | | ?????????????????????????????????????????????????? | | ?????????????????????????????????????????????????? | | ?????????????????????????????????????????????????? | | ?????????????????#???#########???????????????????? | | ?????????????????# ??# #???????????????????? | | ?????????????????? ?# k #???????????????????? | | ??????????????????? ?#k #######?????????????? | | ??????????????????? # # #?????????????? | | ???????????????????? # # #?????????????? | | ?????????????????????+ s s/ /?????????????? | | ?????????????????????#a s s# ??????????????? | | ?????????????????????# s # ??????????????? | | ?????????????????#???# s ## #??????????????? | | ?????????????????# # r ## #??????????????? | | ?????????????????# #? ??# #??????????????? | | ?????????????????# #??#@#???# #??????????????? | | ???????????####### #??#[#???# #???? ?????????? | | ?????????? #??#%#???# #???? ?????????? | | ?????????? ####Y##### #???# ?????????? | | ?????????? r % #???# ?????????? | | ?????????????????# #???# #????????? | | ?????????????????# g #???# #????????? | | ?????????????????# ########???# ########## | | ?????????????????# """ g #?????????## | | ?????????????????# """ g#?????????# | | ??????????????#### """ ########?## | | ?????????????##! T | | ?????????????#! #######???# | | ?????????????#! #?????????# # | | ?????????????#! !! #?????????# # | | ?????????????#! !!% #?????????# # | | ?????????????## ! " #?????????# + | | ??????????????#### #?????????# """ # | | ?????????????????# #?????????# """ # | | ?????????????????####### #?????????# """ # | | ???????????????????????# #?????????# # | | ???????????????????????+ #?????????# # | | ???????????????????????# #?????????# """ # | | ???????????????????????# ########### """ # | | ???????????????????????# """ # | +----------------------------------------------------+ Best States ------------- Heat Dissipation 28 Energy Generation 10 Energy Capacity 125 Matter Stores 300 Matter Capacity 300 Sight Range 16 Robot Scan Range 14 Terrain Scan Density 10 Evasion (%) 44 Item Schematics ----------------- None Robot Schematics ------------------ None Fabricated ------------ Nothing Alien Tech Used ----------------- None Achievements -------------- None Challenges ------------ None Game ------ Seed VariableSubatomicGenerator Manual? 0 Play Time 00:10:49 Cumulative 4.5 hours Start 2024.08.02 @ 13:11:19 End 2024.08.02 @ 13:21:42 Sessions 1 Manual Loads 0 Difficulty Rogue Special Mode None Game No. 3 Rogue 3 Adventurer 0 Explorer 0 Win Type - Total 0 Types 0/0/0/0/0/0/0/0/0 Lore% 5 Gallery% 6 Achievement% 10 Wizard Run 0 Options --------- Layout 1 ASCII 0 Keyboard 1 Movement Numpad Keybinds 1 Fullscreen 1 Font 24/Smallcaps Map View 50x35 Zoom Use 0% Tactical HUD 0 Map Filters NONE Filters NONE Steam 0 RUN: a17a9b5a-0302-42ba-a428-1b75492905ed